[Event "Titled Tuesday Blitz December 27 Early 2022"]
[White "Hartikainen, Jarmo"]
[Black "Garcia Almaguer, Juan Manuel"]
[WhiteFideId "503134"]
[BlackFideId "5110491"]
[WhiteElo "2108"]
[BlackElo "2090"]
[Result "1-0"]
[Round "07"]
[TimeControl "180+2"]
[Date "2022.12.27"]
[WhiteClock "0:00:42"]
[BlackClock "0:00:13"]

1. e4 {[%clk 0:03:00]}  e5 {[%clk 0:02:52]} 2. Nf3 {[%clk 0:03:00]}  Nc6 {[%clk 0:02:53]} 3. Bc4 {[%clk 0:02:59]}  Nf6 {[%clk 0:02:53]} 4. d3 {[%clk 0:02:59]}  h6 {[%clk 0:02:52]} 5. O-O {[%clk 0:02:58]}  d6 {[%clk 0:02:52]} 6. h3 {[%clk 0:02:57]}  g5 {[%clk 0:02:52]} 7. Nh2 {[%clk 0:02:52]}  Na5 {[%clk 0:02:52]} 8. Bb3 {[%clk 0:02:42]}  Nxb3 {[%clk 0:02:37]} 9. axb3 {[%clk 0:02:42]}  Rg8 {[%clk 0:02:36]} 10. g4 {[%clk 0:02:20]}  d5 {[%clk 0:02:15]} 11. exd5 {[%clk 0:02:11]}  Qxd5 {[%clk 0:02:14]} 12. Qf3 {[%clk 0:02:06]}  Qe6 {[%clk 0:02:06]} 13. Nc3 {[%clk 0:01:58]}  h5 {[%clk 0:02:06]} 14. Ne4 {[%clk 0:01:55]}  Be7 {[%clk 0:01:51]} 15. Bd2 {[%clk 0:01:35]}  hxg4 {[%clk 0:01:50]} 16. Nxf6+ {[%clk 0:01:29]}  Bxf6 {[%clk 0:01:42]} 17. Nxg4 {[%clk 0:01:28]}  Be7 {[%clk 0:01:41]} 18. Rfe1 {[%clk 0:01:26]}  f6 {[%clk 0:01:34]} 19. d4 {[%clk 0:01:26]}  Bd7 {[%clk 0:01:19]} 20. d5 {[%clk 0:01:15]}  Qd6 {[%clk 0:00:56]} 21. c4 {[%clk 0:01:04]}  a6 {[%clk 0:00:35]} 22. c5 {[%clk 0:00:56]}  Qxc5 {[%clk 0:00:34]} 23. Nxf6+ {[%clk 0:00:56]}  Bxf6 {[%clk 0:00:34]} 24. Qxf6 {[%clk 0:00:56]}  Bxh3 {[%clk 0:00:13]} 25. Rxe5+ {[%clk 0:00:42]}  Kd7 {[%clk 0:00:13]} 26. Qf7+ {[%clk 0:00:42]}  Kd6 {[%clk 0:00:13]} 27. Qe7# {[%clk 0:00:42]} 1-0


[Site "https://www.chess.com"]

[Event "Titled Tuesday Blitz December 27 Early 2022"]
[White "Hasangatin, Ramil"]
[Black "Graca, Robert"]
[WhiteFideId "4122160"]
[BlackFideId "644943"]
[WhiteElo "2457"]
[BlackElo "2270"]
[Result "1-0"]
[Round "07"]
[TimeControl "180+2"]
[Date "2022.12.27"]
[WhiteClock "0:00:32"]
[BlackClock "0:00:01"]

1. e4 {[%clk 0:03:00]}  c5 {[%clk 0:02:46]} 2. Nf3 {[%clk 0:03:00]}  d6 {[%clk 0:02:46]} 3. d4 {[%clk 0:02:59]}  cxd4 {[%clk 0:02:47]} 4. Qxd4 {[%clk 0:02:59]}  Nc6 {[%clk 0:02:47]} 5. Bb5 {[%clk 0:02:59]}  Bd7 {[%clk 0:02:47]} 6. Bxc6 {[%clk 0:03:00]}  Bxc6 {[%clk 0:02:48]} 7. Nc3 {[%clk 0:03:00]}  Nf6 {[%clk 0:02:48]} 8. Bg5 {[%clk 0:03:00]}  e6 {[%clk 0:02:49]} 9. O-O-O {[%clk 0:03:01]}  Be7 {[%clk 0:02:49]} 10. Rhe1 {[%clk 0:03:01]}  O-O {[%clk 0:02:48]} 11. Qd2 {[%clk 0:03:01]}  h6 {[%clk 0:02:43]} 12. Bf4 {[%clk 0:03:00]}  e5 {[%clk 0:02:43]} 13. Bg3 {[%clk 0:03:01]}  Re8 {[%clk 0:02:41]} 14. Bh4 {[%clk 0:03:01]}  Qb6 {[%clk 0:02:28]} 15. Bxf6 {[%clk 0:02:59]}  Bxf6 {[%clk 0:02:28]} 16. Re2 {[%clk 0:02:50]}  Red8 {[%clk 0:02:20]} 17. Kb1 {[%clk 0:02:50]}  Rac8 {[%clk 0:02:16]} 18. Nd5 {[%clk 0:02:45]}  Bxd5 {[%clk 0:02:07]} 19. Qxd5 {[%clk 0:02:46]}  Rc5 {[%clk 0:01:59]} 20. Qd3 {[%clk 0:02:37]}  d5 {[%clk 0:01:41]} 21. Red2 {[%clk 0:02:32]}  Rb5 {[%clk 0:01:19]} 22. c3 {[%clk 0:02:09]}  dxe4 {[%clk 0:00:50]} 23. Qxe4 {[%clk 0:02:09]}  Rxb2+ {[%clk 0:00:47]} 24. Rxb2 {[%clk 0:02:07]}  Rxd1+ {[%clk 0:00:47]} 25. Kc2 {[%clk 0:02:05]}  Qd8 {[%clk 0:00:47]} 26. Qe2 {[%clk 0:01:28]}  e4 {[%clk 0:00:40]} 27. Qxd1 {[%clk 0:01:26]}  Qxd1+ {[%clk 0:00:23]} 28. Kxd1 {[%clk 0:01:27]}  exf3 {[%clk 0:00:23]} 29. gxf3 {[%clk 0:01:23]}  Bxc3 {[%clk 0:00:23]} 30. Rxb7 {[%clk 0:01:23]}  Bd4 {[%clk 0:00:23]} 31. Ke2 {[%clk 0:01:22]}  g6 {[%clk 0:00:21]} 32. f4 {[%clk 0:01:21]}  Kg7 {[%clk 0:00:21]} 33. f3 {[%clk 0:01:21]}  Kf6 {[%clk 0:00:21]} 34. Rd7 {[%clk 0:01:21]}  Bg1 {[%clk 0:00:21]} 35. Kf1 {[%clk 0:01:14]}  Be3 {[%clk 0:00:19]} 36. Ke2 {[%clk 0:01:09]}  Bg1 {[%clk 0:00:19]} 37. h3 {[%clk 0:01:05]}  Bb6 {[%clk 0:00:17]} 38. Rd5 {[%clk 0:01:03]}  Ke6 {[%clk 0:00:17]} 39. Rb5 {[%clk 0:01:03]}  Bg1 {[%clk 0:00:17]} 40. Kd3 {[%clk 0:01:02]}  Bh2 {[%clk 0:00:10]} 41. Ra5 {[%clk 0:00:59]}  Bg1 {[%clk 0:00:08]} 42. Ke4 {[%clk 0:00:59]}  Kf6 {[%clk 0:00:07]} 43. Rd5 {[%clk 0:00:54]}  Ke6 {[%clk 0:00:07]} 44. Re5+ {[%clk 0:00:53]}  Kf6 {[%clk 0:00:08]} 45. f5 {[%clk 0:00:50]}  g5 {[%clk 0:00:02]} 46. Rd5 {[%clk 0:00:49]}  Bb6 {[%clk 0:00:01]} 47. Rd6+ {[%clk 0:00:49]}  Kg7 {[%clk 0:00:02]} 48. Kd5 {[%clk 0:00:45]}  Bg1 {[%clk 0:00:03]} 49. Kc6 {[%clk 0:00:44]}  Bh2 {[%clk 0:00:03]} 50. Rd2 {[%clk 0:00:37]}  Bg1 {[%clk 0:00:03]} 51. Kd5 {[%clk 0:00:33]}  Kf6 {[%clk 0:00:03]} 52. Ke4 {[%clk 0:00:34]}  Bb6 {[%clk 0:00:03]} 53. Rc2 {[%clk 0:00:34]}  h5 {[%clk 0:00:03]} 54. a3 {[%clk 0:00:34]}  Bg1 {[%clk 0:00:03]} 55. Rc6+ {[%clk 0:00:34]}  Kg7 {[%clk 0:00:03]} 56. a4 {[%clk 0:00:34]}  f6 {[%clk 0:00:01]} 57. Kd5 {[%clk 0:00:32]} 1-0


[Site "https://www.chess.com"]

[Event "Titled Tuesday Blitz December 27 Early 2022"]
[White "Iljin, Timofey"]
[Black "Legenia, Artem"]
[WhiteFideId "14110180"]
[BlackFideId "14136945"]
[WhiteElo "2329"]
[BlackElo "2092"]
[Result "0-1"]
[Round "07"]
[TimeControl "180+2"]
[Date "2022.12.27"]
[WhiteClock "0:00:03"]
[BlackClock "0:00:20"]

1. e4 {[%clk 0:03:00]}  c5 {[%clk 0:02:51]} 2. c3 {[%clk 0:02:54]}  e6 {[%clk 0:02:51]} 3. d4 {[%clk 0:02:54]}  cxd4 {[%clk 0:02:50]} 4. cxd4 {[%clk 0:02:54]}  Nf6 {[%clk 0:02:48]} 5. Nd2 {[%clk 0:02:53]}  d5 {[%clk 0:02:48]} 6. Bd3 {[%clk 0:02:54]}  dxe4 {[%clk 0:02:44]} 7. Nxe4 {[%clk 0:02:54]}  Nc6 {[%clk 0:02:43]} 8. Nf3 {[%clk 0:02:54]}  Bb4+ {[%clk 0:02:38]} 9. Nc3 {[%clk 0:02:54]}  O-O {[%clk 0:02:31]} 10. O-O {[%clk 0:02:50]}  h6 {[%clk 0:02:31]} 11. Bc2 {[%clk 0:02:48]}  b6 {[%clk 0:02:28]} 12. Re1 {[%clk 0:02:42]}  Bb7 {[%clk 0:02:28]} 13. a3 {[%clk 0:02:37]}  Be7 {[%clk 0:02:28]} 14. Qd3 {[%clk 0:02:37]}  Rc8 {[%clk 0:02:21]} 15. h3 {[%clk 0:02:28]}  Qd7 {[%clk 0:02:06]} 16. Be3 {[%clk 0:02:22]}  Rfd8 {[%clk 0:02:06]} 17. Rad1 {[%clk 0:02:19]}  Bf8 {[%clk 0:02:05]} 18. Ne4 {[%clk 0:01:47]}  Nxe4 {[%clk 0:01:52]} 19. Qxe4 {[%clk 0:01:48]}  g6 {[%clk 0:01:47]} 20. Qh4 {[%clk 0:01:10]}  h5 {[%clk 0:01:47]} 21. Be4 {[%clk 0:00:43]}  Ne7 {[%clk 0:01:46]} 22. Bxb7 {[%clk 0:00:42]}  Qxb7 {[%clk 0:01:47]} 23. Ne5 {[%clk 0:00:38]}  Nf5 {[%clk 0:01:46]} 24. Qf4 {[%clk 0:00:32]}  Bh6 {[%clk 0:01:42]} 25. Qf3 {[%clk 0:00:26]}  Qxf3 {[%clk 0:01:41]} 26. Nxf3 {[%clk 0:00:18]}  Nxe3 {[%clk 0:01:34]} 27. fxe3 {[%clk 0:00:18]}  Rc2 {[%clk 0:01:35]} 28. Rd2 {[%clk 0:00:16]}  Rdc8 {[%clk 0:01:34]} 29. b4 {[%clk 0:00:08]}  Rxd2 {[%clk 0:01:33]} 30. Nxd2 {[%clk 0:00:09]}  Rc3 {[%clk 0:01:33]} 31. Kf2 {[%clk 0:00:09]}  Rxa3 {[%clk 0:01:32]} 32. Nc4 {[%clk 0:00:04]}  Rc3 {[%clk 0:01:31]} 33. Ne5 {[%clk 0:00:04]}  b5 {[%clk 0:01:27]} 34. Nd7 {[%clk 0:00:03]}  Rb3 {[%clk 0:01:24]} 35. Nf6+ {[%clk 0:00:02]}  Kg7 {[%clk 0:01:24]} 36. Ne4 {[%clk 0:00:02]}  Rxb4 {[%clk 0:01:22]} 37. Nc5 {[%clk 0:00:02]}  Rb2+ {[%clk 0:01:19]} 38. Kf3 {[%clk 0:00:03]}  a5 {[%clk 0:01:16]} 39. e4 {[%clk 0:00:03]}  a4 {[%clk 0:01:15]} 40. Ra1 {[%clk 0:00:02]}  Rd2 {[%clk 0:01:10]} 41. Rb1 {[%clk 0:00:02]}  Rxd4 {[%clk 0:01:06]} 42. Rxb5 {[%clk 0:00:02]}  Rc4 {[%clk 0:01:06]} 43. Ra5 {[%clk 0:00:02]}  a3 {[%clk 0:01:06]} 44. Nd7 {[%clk 0:00:01]}  Rc3+ {[%clk 0:01:01]} 45. Ke2 {[%clk 0:00:02]}  Bc1 {[%clk 0:00:59]} 46. e5 {[%clk 0:00:02]}  Bb2 {[%clk 0:00:57]} 47. Nf6 {[%clk 0:00:02]}  Rc2+ {[%clk 0:00:50]} 48. Kd3 {[%clk 0:00:02]}  Rxg2 {[%clk 0:00:45]} 49. Ne8+ {[%clk 0:00:03]}  Kf8 {[%clk 0:00:44]} 50. Ra8 {[%clk 0:00:03]}  Bxe5 {[%clk 0:00:39]} 51. Nd6+ {[%clk 0:00:02]}  Ke7 {[%clk 0:00:36]} 52. Nc4 {[%clk 0:00:02]}  Bb2 {[%clk 0:00:34]} 53. Ra7+ {[%clk 0:00:03]}  Kf6 {[%clk 0:00:34]} 54. Nd6 {[%clk 0:00:03]}  Rg3+ {[%clk 0:00:27]} 55. Kc2 {[%clk 0:00:03]}  Rxh3 {[%clk 0:00:27]} 56. Rxf7+ {[%clk 0:00:03]}  Ke5 {[%clk 0:00:23]} 57. Nc4+ {[%clk 0:00:03]}  Kd4 {[%clk 0:00:23]} 58. Na5 {[%clk 0:00:02]}  Rh2+ {[%clk 0:00:22]} 59. Kb1 {[%clk 0:00:02]}  a2+ {[%clk 0:00:18]} 60. Kxa2 {[%clk 0:00:02]}  Bc3+ {[%clk 0:00:18]} 61. Kb3 {[%clk 0:00:02]}  Bxa5 {[%clk 0:00:19]} 62. Rd7+ {[%clk 0:00:02]}  Ke4 {[%clk 0:00:19]} 63. Kc4 {[%clk 0:00:03]}  Rc2+ {[%clk 0:00:18]} 64. Kb5 {[%clk 0:00:03]}  Bd2 {[%clk 0:00:18]} 65. Rg7 {[%clk 0:00:03]}  Kf5 {[%clk 0:00:18]} 66. Rf7+ {[%clk 0:00:03]}  Kg5 {[%clk 0:00:18]} 67. Re7 {[%clk 0:00:04]}  Kf5 {[%clk 0:00:17]} 68. Re8 {[%clk 0:00:05]}  h4 {[%clk 0:00:17]} 69. Rf8+ {[%clk 0:00:05]}  Kg5 {[%clk 0:00:18]} 70. Re8 {[%clk 0:00:06]}  h3 {[%clk 0:00:18]} 71. Rxe6 {[%clk 0:00:06]}  h2 {[%clk 0:00:19]} 72. Ka4 {[%clk 0:00:05]}  h1=Q {[%clk 0:00:19]} 73. Kb3 {[%clk 0:00:06]}  Qd5+ {[%clk 0:00:19]} 74. Ka3 {[%clk 0:00:03]}  Qxe6 {[%clk 0:00:19]} 75. Ka4 {[%clk 0:00:03]}  Qc4+ {[%clk 0:00:19]} 76. Ka3 {[%clk 0:00:03]}  Rc3+ {[%clk 0:00:19]} 77. Kb2 {[%clk 0:00:03]}  Qb4+ {[%clk 0:00:20]} 78. Ka1 {[%clk 0:00:03]}  Ra3# {[%clk 0:00:20]} 0-1


[Site "https://www.chess.com"]

[Event "Titled Tuesday Blitz December 27 Early 2022"]
[White "Iskusnyh, Sergei"]
[Black "Abdilkhair, Abilmansur"]
[WhiteFideId "4120027"]
[BlackFideId "13716417"]
[WhiteElo "2440"]
[BlackElo "2268"]
[Result "1/2-1/2"]
[Round "07"]
[TimeControl "180+2"]
[Date "2022.12.27"]
[WhiteClock "0:01:39"]
[BlackClock "0:02:00"]

1. d4 {[%clk 0:02:59]}  Nf6 {[%clk 0:02:55]} 2. c4 {[%clk 0:02:59]}  e6 {[%clk 0:02:54]} 3. g3 {[%clk 0:02:59]}  Bb4+ {[%clk 0:02:50]} 4. Bd2 {[%clk 0:02:59]}  a5 {[%clk 0:02:47]} 5. Bg2 {[%clk 0:02:58]}  O-O {[%clk 0:02:44]} 6. Nf3 {[%clk 0:02:58]}  d5 {[%clk 0:02:40]} 7. Qc2 {[%clk 0:02:56]}  Nc6 {[%clk 0:02:33]} 8. a3 {[%clk 0:02:45]}  Bd6 {[%clk 0:02:31]} 9. O-O {[%clk 0:02:44]}  dxc4 {[%clk 0:02:29]} 10. Qxc4 {[%clk 0:02:43]}  e5 {[%clk 0:02:30]} 11. dxe5 {[%clk 0:02:39]}  Nxe5 {[%clk 0:02:30]} 12. Nxe5 {[%clk 0:02:39]}  Bxe5 {[%clk 0:02:31]} 13. Bc3 {[%clk 0:02:39]}  Qe7 {[%clk 0:02:29]} 14. Bxe5 {[%clk 0:02:26]}  Qxe5 {[%clk 0:02:30]} 15. Nc3 {[%clk 0:02:26]}  c6 {[%clk 0:02:30]} 16. Qf4 {[%clk 0:02:25]}  Qxf4 {[%clk 0:02:30]} 17. gxf4 {[%clk 0:02:25]}  Be6 {[%clk 0:02:30]} 18. Rfd1 {[%clk 0:02:08]}  Bb3 {[%clk 0:02:29]} 19. Rd3 {[%clk 0:02:06]}  Rad8 {[%clk 0:02:29]} 20. Ne4 {[%clk 0:01:55]}  Nxe4 {[%clk 0:02:09]} 21. Rxb3 {[%clk 0:01:53]}  Nc5 {[%clk 0:02:01]} 22. Rc3 {[%clk 0:01:51]}  Na4 {[%clk 0:02:00]} 23. Rb3 {[%clk 0:01:49]}  Nc5 {[%clk 0:02:00]} 24. Rc3 {[%clk 0:01:45]}  Na4 {[%clk 0:02:00]} 25. Rb3 {[%clk 0:01:39]}  Nc5 {[%clk 0:02:00]} 1/2-1/2


[Site "https://www.chess.com"]

[Event "Titled Tuesday Blitz December 27 Early 2022"]
[White "Itgelt, Khuyagtsogt"]
[Black "Stork, Oliver"]
[WhiteFideId "4902912"]
[BlackFideId "12955728"]
[WhiteElo "2261"]
[BlackElo "2342"]
[Result "1/2-1/2"]
[Round "07"]
[TimeControl "180+2"]
[Date "2022.12.27"]
[WhiteClock "0:00:05"]
[BlackClock "0:00:07"]

1. d4 {[%clk 0:02:57]}  Nf6 {[%clk 0:02:59]} 2. Nf3 {[%clk 0:02:58]}  g6 {[%clk 0:02:58]} 3. g3 {[%clk 0:02:56]}  Bg7 {[%clk 0:02:59]} 4. Bg2 {[%clk 0:02:56]}  O-O {[%clk 0:02:59]} 5. O-O {[%clk 0:02:57]}  d5 {[%clk 0:02:59]} 6. c4 {[%clk 0:02:58]}  c6 {[%clk 0:02:59]} 7. cxd5 {[%clk 0:02:58]}  cxd5 {[%clk 0:02:59]} 8. Nc3 {[%clk 0:02:58]}  Nc6 {[%clk 0:02:39]} 9. Ne5 {[%clk 0:02:51]}  e6 {[%clk 0:02:39]} 10. Nxc6 {[%clk 0:02:44]}  bxc6 {[%clk 0:02:39]} 11. b3 {[%clk 0:02:44]}  c5 {[%clk 0:02:36]} 12. Ba3 {[%clk 0:02:42]}  Nd7 {[%clk 0:02:26]} 13. e3 {[%clk 0:02:36]}  Qa5 {[%clk 0:02:18]} 14. Na4 {[%clk 0:02:36]}  Ba6 {[%clk 0:02:06]} 15. Re1 {[%clk 0:02:36]}  Rfc8 {[%clk 0:01:58]} 16. Bxc5 {[%clk 0:02:25]}  Nxc5 {[%clk 0:01:57]} 17. Nxc5 {[%clk 0:02:26]}  Rxc5 {[%clk 0:01:55]} 18. dxc5 {[%clk 0:02:27]}  Bxa1 {[%clk 0:01:54]} 19. Qxa1 {[%clk 0:02:27]}  Rc8 {[%clk 0:01:48]} 20. Rc1 {[%clk 0:01:24]}  Rxc5 {[%clk 0:01:47]} 21. Rxc5 {[%clk 0:01:24]}  Qxc5 {[%clk 0:01:48]} 22. h4 {[%clk 0:01:25]}  Bd3 {[%clk 0:01:07]} 23. Qb2 {[%clk 0:01:01]}  Qc2 {[%clk 0:01:02]} 24. Qxc2 {[%clk 0:01:02]}  Bxc2 {[%clk 0:01:03]} 25. b4 {[%clk 0:01:03]}  Kf8 {[%clk 0:01:00]} 26. Kf1 {[%clk 0:01:01]}  Ke7 {[%clk 0:01:00]} 27. Ke1 {[%clk 0:00:59]}  Kd6 {[%clk 0:01:00]} 28. Kd2 {[%clk 0:01:00]}  Bb1 {[%clk 0:01:00]} 29. a4 {[%clk 0:00:53]}  e5 {[%clk 0:00:53]} 30. Kc3 {[%clk 0:00:53]}  h6 {[%clk 0:00:44]} 31. Bf1 {[%clk 0:00:48]}  g5 {[%clk 0:00:41]} 32. hxg5 {[%clk 0:00:38]}  hxg5 {[%clk 0:00:42]} 33. a5 {[%clk 0:00:26]}  Bf5 {[%clk 0:00:34]} 34. Be2 {[%clk 0:00:25]}  Bd7 {[%clk 0:00:33]} 35. Bh5 {[%clk 0:00:20]}  Be6 {[%clk 0:00:30]} 36. Be2 {[%clk 0:00:20]}  Bd7 {[%clk 0:00:30]} 37. Bd3 {[%clk 0:00:20]}  f5 {[%clk 0:00:29]} 38. f4 {[%clk 0:00:19]}  d4+ {[%clk 0:00:17]} 39. exd4 {[%clk 0:00:16]}  exf4 {[%clk 0:00:18]} 40. gxf4 {[%clk 0:00:16]}  g4 {[%clk 0:00:12]} 41. Kd2 {[%clk 0:00:12]}  g3 {[%clk 0:00:11]} 42. Ke3 {[%clk 0:00:13]}  Bc6 {[%clk 0:00:10]} 43. Bc4 {[%clk 0:00:11]}  Be4 {[%clk 0:00:06]} 44. b5 {[%clk 0:00:11]}  Kc7 {[%clk 0:00:06]} 45. d5 {[%clk 0:00:08]}  g2 {[%clk 0:00:05]} 46. Kf2 {[%clk 0:00:08]}  Kd6 {[%clk 0:00:05]} 47. b6 {[%clk 0:00:09]}  axb6 {[%clk 0:00:06]} 48. axb6 {[%clk 0:00:09]}  Kd7 {[%clk 0:00:07]} 49. Bb5+ {[%clk 0:00:06]}  Kc8 {[%clk 0:00:05]} 50. Bc6 {[%clk 0:00:06]}  Kb8 {[%clk 0:00:05]} 51. Kg1 {[%clk 0:00:06]}  Kc8 {[%clk 0:00:05]} 52. Kf2 {[%clk 0:00:05]}  Kb8 {[%clk 0:00:06]} 53. Bd7 {[%clk 0:00:03]}  Bxd5 {[%clk 0:00:04]} 54. Bxf5 {[%clk 0:00:03]}  Kb7 {[%clk 0:00:05]} 55. Bh3 {[%clk 0:00:03]}  Kxb6 {[%clk 0:00:05]} 56. Bxg2 {[%clk 0:00:04]}  Bf7 {[%clk 0:00:05]} 57. Ke3 {[%clk 0:00:04]}  Kc7 {[%clk 0:00:06]} 58. Ke4 {[%clk 0:00:04]}  Kd6 {[%clk 0:00:06]} 59. Kf5 {[%clk 0:00:05]}  Ke7 {[%clk 0:00:07]} 60. Kg5 {[%clk 0:00:05]}  Kf8 {[%clk 0:00:07]} 61. Kf6 {[%clk 0:00:04]}  Bc4 {[%clk 0:00:07]} 62. Be4 {[%clk 0:00:05]}  Bf7 {[%clk 0:00:07]} 63. Bf5 {[%clk 0:00:05]}  Bg8 {[%clk 0:00:07]} 64. Bc2 {[%clk 0:00:06]}  Bc4 {[%clk 0:00:07]} 65. Bd1 {[%clk 0:00:06]}  Ba2 {[%clk 0:00:07]} 66. Bc2 {[%clk 0:00:06]}  Bc4 {[%clk 0:00:07]} 67. Ke5 {[%clk 0:00:05]}  Ba2 {[%clk 0:00:07]} 68. Kf6 {[%clk 0:00:05]}  Bc4 {[%clk 0:00:07]} 1/2-1/2


[Site "https://www.chess.com"]

[Event "Titled Tuesday Blitz December 27 Early 2022"]
[White "Jimenez Almeida, Luis David"]
[Black "Bintang, Rasyid A. Hidayat"]
[WhiteFideId "22242244"]
[BlackFideId "7105355"]
[WhiteElo "2242"]
[BlackElo "1820"]
[Result "1-0"]
[Round "07"]
[TimeControl "180+2"]
[Date "2022.12.27"]
[WhiteClock "0:00:39"]
[BlackClock "0:00:51"]

1. e4 {[%clk 0:03:00]}  e5 {[%clk 0:02:59]} 2. Nf3 {[%clk 0:02:59]}  Nc6 {[%clk 0:02:59]} 3. Bb5 {[%clk 0:02:58]}  a6 {[%clk 0:02:58]} 4. Ba4 {[%clk 0:02:58]}  d6 {[%clk 0:02:58]} 5. O-O {[%clk 0:02:58]}  Bg4 {[%clk 0:02:58]} 6. h3 {[%clk 0:02:57]}  h5 {[%clk 0:02:58]} 7. d3 {[%clk 0:02:49]}  Qf6 {[%clk 0:02:56]} 8. Nbd2 {[%clk 0:02:46]}  g5 {[%clk 0:02:56]} 9. Re1 {[%clk 0:02:42]}  Bd7 {[%clk 0:02:56]} 10. Nf1 {[%clk 0:02:24]}  g4 {[%clk 0:02:56]} 11. hxg4 {[%clk 0:02:23]}  hxg4 {[%clk 0:02:57]} 12. N3h2 {[%clk 0:02:22]}  Qh4 {[%clk 0:02:45]} 13. Be3 {[%clk 0:02:10]}  O-O-O {[%clk 0:02:39]} 14. c3 {[%clk 0:02:09]}  Nge7 {[%clk 0:02:36]} 15. Qd2 {[%clk 0:02:07]}  f5 {[%clk 0:02:31]} 16. exf5 {[%clk 0:02:02]}  Bxf5 {[%clk 0:02:26]} 17. Bxc6 {[%clk 0:01:58]}  Nxc6 {[%clk 0:02:11]} 18. Bg5 {[%clk 0:01:57]}  Qh5 {[%clk 0:02:11]} 19. Bxd8 {[%clk 0:01:54]}  Bh6 {[%clk 0:02:11]} 20. Qe2 {[%clk 0:01:46]}  Nxd8 {[%clk 0:02:08]} 21. Ng3 {[%clk 0:01:40]}  Qg6 {[%clk 0:01:32]} 22. Nxf5 {[%clk 0:01:37]}  Qxf5 {[%clk 0:01:33]} 23. Qxg4 {[%clk 0:01:37]}  Qxg4 {[%clk 0:01:34]} 24. Nxg4 {[%clk 0:01:38]}  Bg7 {[%clk 0:01:34]} 25. g3 {[%clk 0:01:32]}  Ne6 {[%clk 0:01:34]} 26. Kg2 {[%clk 0:01:30]}  Nc5 {[%clk 0:01:33]} 27. Rad1 {[%clk 0:01:29]}  Rg8 {[%clk 0:01:34]} 28. Ne3 {[%clk 0:01:27]}  Bf6 {[%clk 0:01:32]} 29. Nd5 {[%clk 0:01:24]}  Bd8 {[%clk 0:01:32]} 30. d4 {[%clk 0:01:23]}  Nd7 {[%clk 0:01:31]} 31. dxe5 {[%clk 0:01:22]}  Nxe5 {[%clk 0:01:32]} 32. f4 {[%clk 0:01:21]}  Nc4 {[%clk 0:01:31]} 33. b3 {[%clk 0:01:19]}  Na5 {[%clk 0:01:28]} 34. Ne7+ {[%clk 0:01:16]}  Bxe7 {[%clk 0:01:29]} 35. Rxe7 {[%clk 0:01:17]}  Nc6 {[%clk 0:01:30]} 36. Rh7 {[%clk 0:01:17]}  Nd8 {[%clk 0:01:30]} 37. Re1 {[%clk 0:01:15]}  Nc6 {[%clk 0:01:23]} 38. Kf3 {[%clk 0:01:11]}  b5 {[%clk 0:01:23]} 39. g4 {[%clk 0:01:09]}  b4 {[%clk 0:01:23]} 40. cxb4 {[%clk 0:01:09]}  Rf8 {[%clk 0:01:24]} 41. f5 {[%clk 0:01:06]}  Ne5+ {[%clk 0:01:22]} 42. Rxe5 {[%clk 0:01:05]}  dxe5 {[%clk 0:01:23]} 43. Ke4 {[%clk 0:01:06]}  Rg8 {[%clk 0:01:21]} 44. f6 {[%clk 0:01:04]}  Rxg4+ {[%clk 0:01:21]} 45. Kxe5 {[%clk 0:01:05]}  Rg1 {[%clk 0:01:16]} 46. f7 {[%clk 0:01:00]}  Re1+ {[%clk 0:01:14]} 47. Kd4 {[%clk 0:00:59]}  Rd1+ {[%clk 0:01:11]} 48. Ke5 {[%clk 0:00:55]}  Rd8 {[%clk 0:00:58]} 49. Rg7 {[%clk 0:00:52]}  Kd7 {[%clk 0:00:48]} 50. f8=Q+ {[%clk 0:00:51]}  Kc6 {[%clk 0:00:47]} 51. Qxd8 {[%clk 0:00:50]}  a5 {[%clk 0:00:48]} 52. Qxc7+ {[%clk 0:00:46]}  Kb5 {[%clk 0:00:49]} 53. Qxa5+ {[%clk 0:00:42]}  Kc6 {[%clk 0:00:49]} 54. b5+ {[%clk 0:00:42]}  Kc5 {[%clk 0:00:49]} 55. b6+ {[%clk 0:00:42]}  Kc6 {[%clk 0:00:49]} 56. Rg6+ {[%clk 0:00:40]}  Kb7 {[%clk 0:00:50]} 57. b4 {[%clk 0:00:39]}  Kb8 {[%clk 0:00:51]} 58. Qa7+ {[%clk 0:00:39]}  Kc8 {[%clk 0:00:51]} 59. Qc7# {[%clk 0:00:39]} 1-0


[Site "https://www.chess.com"]

[Event "Titled Tuesday Blitz December 27 Early 2022"]
[White "Kamsky, Gata"]
[Black "Cardoso Cardoso, Jose Gabriel"]
[WhiteFideId "2000024"]
[BlackFideId "4430492"]
[WhiteElo "2665"]
[BlackElo "2492"]
[Result "1-0"]
[Round "07"]
[TimeControl "180+2"]
[Date "2022.12.27"]
[WhiteClock "0:00:24"]
[BlackClock "0:00:03"]

1. d4 {[%clk 0:02:57]}  g6 {[%clk 0:02:57]} 2. e4 {[%clk 0:02:55]}  Bg7 {[%clk 0:02:54]} 3. c3 {[%clk 0:02:55]}  d6 {[%clk 0:02:54]} 4. Nf3 {[%clk 0:02:50]}  Nf6 {[%clk 0:02:54]} 5. Bd3 {[%clk 0:02:49]}  Nc6 {[%clk 0:02:54]} 6. O-O {[%clk 0:02:46]}  O-O {[%clk 0:02:54]} 7. h3 {[%clk 0:02:46]}  e5 {[%clk 0:02:55]} 8. Re1 {[%clk 0:02:46]}  a5 {[%clk 0:02:52]} 9. a4 {[%clk 0:02:42]}  Nh5 {[%clk 0:02:46]} 10. dxe5 {[%clk 0:02:34]}  dxe5 {[%clk 0:02:41]} 11. Bc4 {[%clk 0:02:32]}  Nf4 {[%clk 0:02:32]} 12. Qxd8 {[%clk 0:02:30]}  Rxd8 {[%clk 0:02:31]} 13. Bxf4 {[%clk 0:02:28]}  exf4 {[%clk 0:02:31]} 14. e5 {[%clk 0:01:45]}  Bf5 {[%clk 0:02:17]} 15. Na3 {[%clk 0:01:34]}  Bd3 {[%clk 0:02:05]} 16. e6 {[%clk 0:01:16]}  Bxc4 {[%clk 0:02:02]} 17. Nxc4 {[%clk 0:01:16]}  Rd5 {[%clk 0:01:45]} 18. exf7+ {[%clk 0:01:12]}  Kxf7 {[%clk 0:01:45]} 19. h4 {[%clk 0:01:06]}  h6 {[%clk 0:01:43]} 20. Kh2 {[%clk 0:01:05]}  Bf6 {[%clk 0:01:41]} 21. Kh3 {[%clk 0:01:04]}  Rad8 {[%clk 0:01:33]} 22. Kg4 {[%clk 0:00:59]}  Rf5 {[%clk 0:01:23]} 23. Re4 {[%clk 0:00:57]}  h5+ {[%clk 0:01:20]} 24. Kh3 {[%clk 0:00:57]}  Rd3 {[%clk 0:01:18]} 25. Rae1 {[%clk 0:00:55]}  Rd8 {[%clk 0:00:59]} 26. Kh2 {[%clk 0:00:50]}  b6 {[%clk 0:00:56]} 27. R1e2 {[%clk 0:00:47]}  Rdd5 {[%clk 0:00:51]} 28. Rd2 {[%clk 0:00:46]}  Ne7 {[%clk 0:00:48]} 29. Rxd5 {[%clk 0:00:45]}  Nxd5 {[%clk 0:00:46]} 30. Kg1 {[%clk 0:00:43]}  Ne7 {[%clk 0:00:41]} 31. Kf1 {[%clk 0:00:42]}  Nc6 {[%clk 0:00:38]} 32. Ke2 {[%clk 0:00:41]}  g5 {[%clk 0:00:33]} 33. hxg5 {[%clk 0:00:40]}  Bxg5 {[%clk 0:00:34]} 34. Nce5+ {[%clk 0:00:40]}  Nxe5 {[%clk 0:00:33]} 35. Nxe5+ {[%clk 0:00:37]}  Kg7 {[%clk 0:00:28]} 36. Nf3 {[%clk 0:00:36]}  Bf6 {[%clk 0:00:28]} 37. Rc4 {[%clk 0:00:36]}  c5 {[%clk 0:00:27]} 38. Re4 {[%clk 0:00:36]}  Kf7 {[%clk 0:00:27]} 39. Kd3 {[%clk 0:00:34]}  h4 {[%clk 0:00:21]} 40. Kc4 {[%clk 0:00:34]}  Bd8 {[%clk 0:00:17]} 41. Kb5 {[%clk 0:00:31]}  Rf6 {[%clk 0:00:15]} 42. Ne5+ {[%clk 0:00:29]}  Kg7 {[%clk 0:00:14]} 43. Nd3 {[%clk 0:00:24]}  f3 {[%clk 0:00:14]} 44. Rxh4 {[%clk 0:00:22]}  fxg2 {[%clk 0:00:13]} 45. Rg4+ {[%clk 0:00:22]}  Rg6 {[%clk 0:00:14]} 46. Rxg6+ {[%clk 0:00:22]}  Kxg6 {[%clk 0:00:11]} 47. Nf4+ {[%clk 0:00:23]}  Kf5 {[%clk 0:00:11]} 48. Nxg2 {[%clk 0:00:24]}  Ke4 {[%clk 0:00:12]} 49. Ne3 {[%clk 0:00:24]}  Kd3 {[%clk 0:00:08]} 50. Nc4 {[%clk 0:00:24]}  Kc2 {[%clk 0:00:08]} 51. f4 {[%clk 0:00:24]}  Kb3 {[%clk 0:00:07]} 52. f5 {[%clk 0:00:24]}  Bf6 {[%clk 0:00:05]} 53. Nxb6 {[%clk 0:00:23]}  Kxb2 {[%clk 0:00:05]} 54. c4 {[%clk 0:00:24]}  Be7 {[%clk 0:00:04]} 55. Kxa5 {[%clk 0:00:24]}  Kc3 {[%clk 0:00:03]} 56. Kb5 {[%clk 0:00:24]} 1-0


[Site "https://www.chess.com"]